[Event "Live Chess"]
[Site "Chess.com"]
[Date "2023.05.20"]
[Round "-"]
[White "Leonid_Starozhilov"]
[Black "ameetghasi100"]
[Result "1-0"]
[WhiteElo "2653"]
[BlackElo "2684"]
[TimeControl "300"]
[EndTime "12:46:08 PDT"]
[Termination "Leonid_Starozhilov won by resignation"]

1. e4 {[%clk 0:04:58.9]} 1... c5 {[%clk 0:04:59.9]} 2. Nf3 {[%clk 0:04:57.6]}
2... Nc6 {[%clk 0:04:56.6]} 3. Bb5 {[%clk 0:04:56.4]} 3... Na5 {[%clk
0:04:53.7]} 4. O-O {[%clk 0:04:54.9]} 4... a6 {[%clk 0:04:53]} 5. Be2 {[%clk
0:04:54.2]} 5... e6 {[%clk 0:04:51.7]} 6. c4 {[%clk 0:04:53.5]} 6... b6 {[%clk
0:04:48.9]} 7. Nc3 {[%clk 0:04:53.1]} 7... Bb7 {[%clk 0:04:48.2]} 8. d4 {[%clk
0:04:52.5]} 8... cxd4 {[%clk 0:04:46.3]} 9. Nxd4 {[%clk 0:04:52.4]} 9... Rc8
{[%clk 0:04:43.8]} 10. b3 {[%clk 0:04:36]} 10... b5 {[%clk 0:04:42.2]} 11. Be3
{[%clk 0:04:34.8]} 11... bxc4 {[%clk 0:04:36.4]} 12. bxc4 {[%clk 0:04:34.7]}
12... Nxc4 {[%clk 0:04:34.7]} 13. Qb3 {[%clk 0:03:57.2]} 13... Na5 {[%clk
0:04:30.4]} 14. Qb2 {[%clk 0:03:50.1]} 14... Nf6 {[%clk 0:04:29.7]} 15. e5
{[%clk 0:03:45.4]} 15... Nd5 {[%clk 0:04:28.1]} 16. Nxd5 {[%clk 0:03:44.4]}
16... Bxd5 {[%clk 0:04:28]} 17. Bxa6 {[%clk 0:03:39.8]} 17... Rb8 {[%clk
0:04:27]} 18. Qe2 {[%clk 0:03:30.5]} 18... Be7 {[%clk 0:04:03.7]} 19. a4 {[%clk
0:03:24.6]} 19... O-O {[%clk 0:03:59.8]} 20. Bb5 {[%clk 0:03:23.6]} 20... f6
{[%clk 0:03:57.3]} 21. exf6 {[%clk 0:03:20.9]} 21... Bxf6 {[%clk 0:03:57.2]} 22.
Rac1 {[%clk 0:03:12.2]} 22... Bxd4 {[%clk 0:03:52.7]} 23. Bxd4 {[%clk
0:03:11.3]} 23... Nb3 {[%clk 0:03:49.9]} 24. Qe5 {[%clk 0:02:50.5]} 24... Nxd4
{[%clk 0:03:37.5]} 25. Qxd4 {[%clk 0:02:50.4]} 25... Qg5 {[%clk 0:03:28.7]} 26.
g3 {[%clk 0:02:34.6]} 26... Rf3 {[%clk 0:02:50.9]} 27. Rce1 {[%clk 0:02:18.9]}
27... Rbf8 {[%clk 0:02:40]} 28. Re5 {[%clk 0:02:13.7]} 28... R8f5 {[%clk
0:02:23.4]} 29. Rxf5 {[%clk 0:01:53.1]} 29... Qxf5 {[%clk 0:02:23.3]} 30. Bxd7
{[%clk 0:01:50.3]} 30... Rd3 {[%clk 0:01:41.3]} 31. Qh4 {[%clk 0:01:22]} 31...
Qf8 {[%clk 0:01:19.8]} 32. Re1 {[%clk 0:00:53.2]} 32... Rd2 {[%clk 0:00:57.3]}
33. Qf4 {[%clk 0:00:51.3]} 33... Qxf4 {[%clk 0:00:54.4]} 34. gxf4 {[%clk
0:00:51.2]} 34... Kf7 {[%clk 0:00:53.7]} 35. f5 {[%clk 0:00:49.6]} 35... exf5
{[%clk 0:00:48.8]} 36. Bxf5 {[%clk 0:00:49.3]} 36... g6 {[%clk 0:00:47.8]} 37.
Bd7 {[%clk 0:00:41.5]} 37... Bf3 {[%clk 0:00:40.6]} 38. Bb5 {[%clk 0:00:37.8]}
38... Kf6 {[%clk 0:00:33.4]} 39. Ra1 {[%clk 0:00:32.1]} 39... Rb2 {[%clk
0:00:30]} 40. Bf1 {[%clk 0:00:30.3]} 40... Rb4 {[%clk 0:00:28.2]} 41. h3 {[%clk
0:00:29.7]} 41... Rb8 {[%clk 0:00:18.9]} 42. a5 {[%clk 0:00:28.4]} 42... Be4
{[%clk 0:00:16.5]} 43. a6 {[%clk 0:00:25.3]} 43... Ra8 {[%clk 0:00:15.8]} 44. a7
{[%clk 0:00:24.1]} 44... Ke5 {[%clk 0:00:13.3]} 45. Bg2 {[%clk 0:00:23.4]} 45...
Kf4 {[%clk 0:00:13.2]} 46. Ra4 {[%clk 0:00:21.6]} 1-0

[Event "Live Chess"]
[Site "Chess.com"]
[Date "2023.05.20"]
[Round "-"]
[White "JohanKjeldahl"]
[Black "Hacker_2009"]
[Result "1-0"]
[WhiteElo "1812"]
[BlackElo "1893"]
[TimeControl "300"]
[EndTime "12:46:15 PDT"]
[Termination "JohanKjeldahl won by resignation"]

1. c4 {[%clk 0:04:57.6]} 1... Nf6 {[%clk 0:04:56.5]} 2. Nc3 {[%clk 0:04:54.8]}
2... e6 {[%clk 0:04:55.3]} 3. e4 {[%clk 0:04:53.1]} 3... d5 {[%clk 0:04:52.2]}
4. e5 {[%clk 0:04:52.1]} 4... Nfd7 {[%clk 0:04:50.4]} 5. d4 {[%clk 0:04:50.3]}
5... c6 {[%clk 0:04:48.2]} 6. Be3 {[%clk 0:04:46.2]} 6... b6 {[%clk 0:04:47.3]}
7. f4 {[%clk 0:04:39.8]} 7... Bb7 {[%clk 0:04:46]} 8. Nf3 {[%clk 0:04:38.3]}
8... c5 {[%clk 0:04:45.2]} 9. cxd5 {[%clk 0:04:33.2]} 9... exd5 {[%clk
0:04:43.8]} 10. dxc5 {[%clk 0:04:20.7]} 10... Nxc5 {[%clk 0:04:41.3]} 11. Bb5+
{[%clk 0:04:16.8]} 11... Nc6 {[%clk 0:04:37.2]} 12. Nxd5 {[%clk 0:04:11.3]}
12... a6 {[%clk 0:04:33.9]} 13. Bxc6+ {[%clk 0:04:05.6]} 13... Bxc6 {[%clk
0:04:32.4]} 14. Nc3 {[%clk 0:04:02.4]} 14... Be7 {[%clk 0:04:26.7]} 15. O-O
{[%clk 0:04:00.1]} 15... O-O {[%clk 0:04:25.2]} 16. Qc2 {[%clk 0:03:47.2]} 16...
Qc7 {[%clk 0:04:22.9]} 17. Rad1 {[%clk 0:03:42.6]} 17... Rac8 {[%clk 0:04:21.2]}
18. Ne2 {[%clk 0:03:35.5]} 18... Qb7 {[%clk 0:04:16.9]} 19. Ned4 {[%clk
0:03:31.1]} 19... Bd5 {[%clk 0:04:12.6]} 20. Qb1 {[%clk 0:03:19.6]} 20... Ne6
{[%clk 0:04:05.9]} 21. Nf5 {[%clk 0:03:15.1]} 21... Bc5 {[%clk 0:04:03.5]} 22.
Bxc5 {[%clk 0:03:10.6]} 22... Nxc5 {[%clk 0:03:59.9]} 23. Nd6 {[%clk 0:03:07.4]}
23... Qc6 {[%clk 0:03:56.6]} 24. Nxc8 {[%clk 0:03:04.5]} 24... Rxc8 {[%clk
0:03:56.5]} 25. Ng5 {[%clk 0:02:59.7]} 25... g6 {[%clk 0:03:53.7]} 26. Nf3
{[%clk 0:02:52.1]} 26... Ne4 {[%clk 0:03:51.6]} 27. Rc1 {[%clk 0:02:44.8]} 27...
Qb7 {[%clk 0:03:46.4]} 28. Rxc8+ {[%clk 0:02:42.7]} 28... Qxc8 {[%clk
0:03:45.5]} 29. Rc1 {[%clk 0:02:40.4]} 29... Qg4 {[%clk 0:03:44.2]} 30. Rd1
{[%clk 0:02:29]} 30... Be6 {[%clk 0:03:38.8]} 31. Qxe4 {[%clk 0:02:25.4]} 1-0

[Event "Live Chess"]
[Site "Chess.com"]
[Date "2023.05.20"]
[Round "-"]
[White "TheSmoulderingMaster"]
[Black "SupremeTactician"]
[Result "1/2-1/2"]
[WhiteElo "1737"]
[BlackElo "2368"]
[TimeControl "300"]
[EndTime "12:46:17 PDT"]
[Termination "Game drawn - insufficient material"]

1. e4 {[%clk 0:04:58.6]} 1... e5 {[%clk 0:04:54.6]} 2. Nf3 {[%clk 0:04:57.1]}
2... Nc6 {[%clk 0:04:54.3]} 3. Bb5 {[%clk 0:04:56]} 3... a6 {[%clk 0:04:53.6]}
4. Ba4 {[%clk 0:04:55.3]} 4... Nf6 {[%clk 0:04:53.3]} 5. O-O {[%clk 0:04:54.2]}
5... Nxe4 {[%clk 0:04:53]} 6. d3 {[%clk 0:04:52.9]} 6... Nc5 {[%clk 0:04:47.2]}
7. Bxc6 {[%clk 0:04:50.6]} 7... dxc6 {[%clk 0:04:46.8]} 8. Nxe5 {[%clk
0:04:50.1]} 8... Be7 {[%clk 0:04:45.3]} 9. Re1 {[%clk 0:04:48.8]} 9... O-O
{[%clk 0:04:44.1]} 10. Nc3 {[%clk 0:04:46]} 10... Bf6 {[%clk 0:04:38.4]} 11. Ng4
{[%clk 0:04:42.1]} 11... Bd4 {[%clk 0:04:13.9]} 12. Qf3 {[%clk 0:04:29.6]} 12...
Bxg4 {[%clk 0:03:59.8]} 13. Qxg4 {[%clk 0:04:28.3]} 13... Qf6 {[%clk 0:03:59.4]}
14. Be3 {[%clk 0:04:23.2]} 14... Rad8 {[%clk 0:03:46.1]} 15. Ne4 {[%clk
0:04:14.4]} 15... Nxe4 {[%clk 0:03:37.3]} 16. Qxe4 {[%clk 0:04:12.8]} 16... Bxe3
{[%clk 0:03:15]} 17. Rxe3 {[%clk 0:04:08]} 17... Qxb2 {[%clk 0:03:13.9]} 18.
Rae1 {[%clk 0:04:05.5]} 18... Qd4 {[%clk 0:02:39.3]} 19. Qxd4 {[%clk 0:03:49]}
19... Rxd4 {[%clk 0:02:39.2]} 20. Re7 {[%clk 0:03:48.2]} 20... Ra4 {[%clk
0:02:33.6]} 21. Rxc7 {[%clk 0:03:38.1]} 21... Rxa2 {[%clk 0:02:29.6]} 22. Rxb7
{[%clk 0:03:32]} 22... Rxc2 {[%clk 0:02:28.7]} 23. g3 {[%clk 0:03:24.1]} 23...
Rc3 {[%clk 0:02:25]} 24. Ra7 {[%clk 0:03:22.4]} 24... Rxd3 {[%clk 0:02:23.4]}
25. Rxa6 {[%clk 0:03:21.4]} 25... Rc3 {[%clk 0:02:22.7]} 26. Ra7 {[%clk
0:03:18.6]} 26... g6 {[%clk 0:02:20.8]} 27. Ree7 {[%clk 0:03:16.5]} 27... c5
{[%clk 0:02:19.7]} 28. Rac7 {[%clk 0:03:15.2]} 28... c4 {[%clk 0:02:18.9]} 29.
Kg2 {[%clk 0:03:14]} 29... Rc1 {[%clk 0:02:16.9]} 30. Re4 {[%clk 0:03:11.6]}
30... c3 {[%clk 0:02:16.1]} 31. Re3 {[%clk 0:03:10.8]} 31... c2 {[%clk
0:02:15.6]} 32. Re2 {[%clk 0:03:10]} 32... h5 {[%clk 0:02:14.9]} 33. Rexc2
{[%clk 0:03:08.7]} 33... Rxc2 {[%clk 0:02:14.6]} 34. Rxc2 {[%clk 0:03:07.3]}
34... Kg7 {[%clk 0:02:14.5]} 35. Rc7 {[%clk 0:03:05.6]} 35... Rd8 {[%clk
0:02:10.9]} 36. h4 {[%clk 0:03:03.9]} 36... Rd6 {[%clk 0:02:08.8]} 37. Ra7
{[%clk 0:03:02.7]} 37... Kf6 {[%clk 0:02:04.7]} 38. Rb7 {[%clk 0:03:01.5]} 38...
Ke6 {[%clk 0:02:03.7]} 39. Ra7 {[%clk 0:03:00.8]} 39... Rb6 {[%clk 0:02:02.9]}
40. Rc7 {[%clk 0:02:59.6]} 40... Rd6 {[%clk 0:02:02.1]} 41. Ra7 {[%clk
0:02:58.6]} 41... Rd7 {[%clk 0:02:01.4]} 42. Ra6+ {[%clk 0:02:56.2]} 42... Ke5
{[%clk 0:01:58.4]} 43. Ra5+ {[%clk 0:02:52.6]} 43... Rd5 {[%clk 0:01:57.5]} 44.
Ra7 {[%clk 0:02:50.9]} 44... f6 {[%clk 0:01:52.2]} 45. Kf3 {[%clk 0:02:49.1]}
45... Kf5 {[%clk 0:01:48.8]} 46. Kg2 {[%clk 0:02:46.9]} 46... g5 {[%clk
0:01:39.6]} 47. Rh7 {[%clk 0:02:42.7]} 47... Kg6 {[%clk 0:01:33.4]} 48. Rh8
{[%clk 0:02:41.9]} 48... gxh4 {[%clk 0:01:32.5]} 49. Rg8+ {[%clk 0:02:39.4]}
49... Kf7 {[%clk 0:01:24.4]} 50. Rh8 {[%clk 0:02:37.4]} 50... hxg3 {[%clk
0:01:20.7]} 51. fxg3 {[%clk 0:02:34.9]} 51... Kg7 {[%clk 0:01:16.5]} 52. Ra8
{[%clk 0:02:31.7]} 52... Rd3 {[%clk 0:01:15.2]} 53. Kh3 {[%clk 0:02:29.1]} 53...
Kg6 {[%clk 0:01:10.7]} 54. Ra4 {[%clk 0:02:27.7]} 54... Kg5 {[%clk 0:01:07.7]}
55. Ra5+ {[%clk 0:02:25.9]} 55... f5 {[%clk 0:01:06.8]} 56. Ra4 {[%clk
0:02:25.2]} 56... Rb3 {[%clk 0:01:01.9]} 57. Rc4 {[%clk 0:02:23.7]} 57... Rb1
{[%clk 0:00:57.9]} 58. Ra4 {[%clk 0:02:22.5]} 58... Rh1+ {[%clk 0:00:56.6]} 59.
Kg2 {[%clk 0:02:21.1]} 59... Rd1 {[%clk 0:00:55.4]} 60. Kh3 {[%clk 0:02:19.9]}
60... Rd5 {[%clk 0:00:54.2]} 61. Rb4 {[%clk 0:02:17.6]} 61... Ra5 {[%clk
0:00:52.7]} 62. Rc4 {[%clk 0:02:16.4]} 62... Ra3 {[%clk 0:00:51.4]} 63. Rb4
{[%clk 0:02:15.4]} 63... Rc3 {[%clk 0:00:51.1]} 64. Rd4 {[%clk 0:02:14.2]} 64...
Re3 {[%clk 0:00:49.8]} 65. Ra4 {[%clk 0:02:12.8]} 65... Rb3 {[%clk 0:00:48.7]}
66. Rc4 {[%clk 0:02:11.5]} 66... Kf6 {[%clk 0:00:46.4]} 67. Kh4 {[%clk 0:02:09]}
67... Ke5 {[%clk 0:00:45.2]} 68. Rc5+ {[%clk 0:02:07]} 68... Ke4 {[%clk
0:00:44.4]} 69. Rc4+ {[%clk 0:02:04.5]} 69... Kd5 {[%clk 0:00:42.9]} 70. Rf4
{[%clk 0:02:02.6]} 70... Ke5 {[%clk 0:00:41.5]} 71. Rf2 {[%clk 0:01:59.6]} 71...
Re3 {[%clk 0:00:40.1]} 72. Ra2 {[%clk 0:01:53.5]} 72... Rd3 {[%clk 0:00:38.2]}
73. Ra5+ {[%clk 0:01:50.5]} 73... Rd5 {[%clk 0:00:37.5]} 74. Ra8 {[%clk
0:01:47.6]} 74... Rd3 {[%clk 0:00:35.4]} 75. Re8+ {[%clk 0:01:44.6]} 75... Kf6
{[%clk 0:00:34.7]} 76. Rf8+ {[%clk 0:01:43.5]} 76... Kg6 {[%clk 0:00:33.9]} 77.
Rg8+ {[%clk 0:01:41.2]} 77... Kf7 {[%clk 0:00:30.3]} 78. Rg5 {[%clk 0:01:40.1]}
78... Kf6 {[%clk 0:00:29.5]} 79. Rxh5 {[%clk 0:01:38.5]} 79... Rd4+ {[%clk
0:00:29]} 80. Kh3 {[%clk 0:01:36.9]} 80... Rd3 {[%clk 0:00:28.4]} 81. Rh4 {[%clk
0:01:33.5]} 81... Kg5 {[%clk 0:00:27.3]} 82. Ra4 {[%clk 0:01:31.8]} 82... Rb3
{[%clk 0:00:26.6]} 83. Kg2 {[%clk 0:01:29.4]} 83... Rc3 {[%clk 0:00:25.1]} 84.
Rb4 {[%clk 0:01:27.6]} 84... Ra3 {[%clk 0:00:24.4]} 85. Rc4 {[%clk 0:01:25.4]}
85... Rb3 {[%clk 0:00:24.1]} 86. Kh3 {[%clk 0:01:24.2]} 86... Ra3 {[%clk
0:00:23.5]} 87. Rd4 {[%clk 0:01:22.9]} 87... Rb3 {[%clk 0:00:23]} 88. Rd5 {[%clk
0:01:20.9]} 88... Ra3 {[%clk 0:00:22.5]} 89. Rd8 {[%clk 0:01:18.8]} 89... Rb3
{[%clk 0:00:22.1]} 90. Rg8+ {[%clk 0:01:17.3]} 90... Kf6 {[%clk 0:00:21.8]} 91.
Kh4 {[%clk 0:01:15.2]} 91... Rb4+ {[%clk 0:00:21]} 92. Kh5 {[%clk 0:01:09.1]}
92... Rb1 {[%clk 0:00:20.1]} 93. Rg6+ {[%clk 0:01:06.3]} 93... Kf7 {[%clk
0:00:19.5]} 94. Kg5 {[%clk 0:01:04.1]} 94... Rf1 {[%clk 0:00:17.6]} 95. Ra6
{[%clk 0:01:00.7]} 95... Rg1 {[%clk 0:00:16.3]} 96. Kf4 {[%clk 0:00:57]} 96...
Re1 {[%clk 0:00:15.6]} 97. Kxf5 {[%clk 0:00:54.7]} 97... Rf1+ {[%clk 0:00:15.4]}
98. Kg5 {[%clk 0:00:53.2]} 98... Rg1 {[%clk 0:00:15.3]} 99. g4 {[%clk
0:00:51.6]} 99... Kg7 {[%clk 0:00:14.9]} 100. Ra7+ {[%clk 0:00:50.1]} 100... Kg8
{[%clk 0:00:14.8]} 101. Kf5 {[%clk 0:00:47.9]} 101... Kf8 {[%clk 0:00:14.2]}
102. g5 {[%clk 0:00:46.7]} 102... Rf1+ {[%clk 0:00:13.8]} 103. Kg6 {[%clk
0:00:45.7]} 103... Rb1 {[%clk 0:00:13.3]} 104. Kh6 {[%clk 0:00:43.3]} 104...
Rb6+ {[%clk 0:00:11.9]} 105. g6 {[%clk 0:00:41.7]} 105... Rb8 {[%clk 0:00:10.4]}
106. Rh7 {[%clk 0:00:38]} 106... Kg8 {[%clk 0:00:09.9]} 107. Rd7 {[%clk
0:00:34.8]} 107... Kf8 {[%clk 0:00:09.1]} 108. Kh7 {[%clk 0:00:30.6]} 108... Ke8
{[%clk 0:00:08.5]} 109. Ra7 {[%clk 0:00:27.6]} 109... Rb3 {[%clk 0:00:07.6]}
110. g7 {[%clk 0:00:25.8]} 110... Rh3+ {[%clk 0:00:06.4]} 111. Kg6 {[%clk
0:00:25]} 111... Rg3+ {[%clk 0:00:06.3]} 112. Kf6 {[%clk 0:00:24.2]} 112... Rf3+
{[%clk 0:00:05.8]} 113. Ke5 {[%clk 0:00:23.4]} 113... Rg3 {[%clk 0:00:05.3]}
114. Ra8+ {[%clk 0:00:20.3]} 114... Kf7 {[%clk 0:00:04.5]} 115. g8=Q+ {[%clk
0:00:19.4]} 115... Rxg8 {[%clk 0:00:03]} 116. Ra7+ {[%clk 0:00:18.5]} 116... Kg6
{[%clk 0:00:02.5]} 117. Ra6+ {[%clk 0:00:16.8]} 117... Kg5 {[%clk 0:00:02.1]}
118. Ra1 {[%clk 0:00:15.3]} 118... Re8+ {[%clk 0:00:01.7]} 119. Kd6 {[%clk
0:00:13.9]} 119... Kf5 {[%clk 0:00:01.6]} 120. Rf1+ {[%clk 0:00:12.1]} 120...
Kg4 {[%clk 0:00:01.5]} 121. Rg1+ {[%clk 0:00:11.2]} 121... Kf3 {[%clk
0:00:01.4]} 122. Rf1+ {[%clk 0:00:10.2]} 122... Ke2 {[%clk 0:00:01.3]} 123. Rf6
{[%clk 0:00:08.7]} 123... Rd8+ {[%clk 0:00:01.2]} 124. Ke7 {[%clk 0:00:07.6]}
124... Rd3 {[%clk 0:00:01.1]} 125. Re6+ {[%clk 0:00:06.5]} 125... Re3 {[%clk
0:00:01]} 126. Rxe3+ {[%clk 0:00:05.7]} 126... Kxe3 {[%clk 0:00:00.9]} 1/2-1/2

[Event "Live Chess"]
[Site "Chess.com"]
[Date "2023.05.20"]
[Round "-"]
[White "KeithArkell"]
[Black "onemoretime1975"]
[Result "1-0"]
[WhiteElo "2615"]
[BlackElo "1916"]
[TimeControl "300"]
[EndTime "12:46:18 PDT"]
[Termination "KeithArkell won on time"]

1. d4 {[%clk 0:04:59.1]} 1... d5 {[%clk 0:04:52.6]} 2. Nf3 {[%clk 0:04:56.7]}
2... Nf6 {[%clk 0:04:50.1]} 3. c4 {[%clk 0:04:49.9]} 3... e6 {[%clk 0:04:47]} 4.
cxd5 {[%clk 0:04:48.8]} 4... exd5 {[%clk 0:04:45.2]} 5. Nc3 {[%clk 0:04:48]}
5... c6 {[%clk 0:04:42]} 6. Qc2 {[%clk 0:04:46.3]} 6... Be7 {[%clk 0:04:37.6]}
7. Bg5 {[%clk 0:04:44.9]} 7... O-O {[%clk 0:04:30.6]} 8. e3 {[%clk 0:04:44.2]}
8... Nbd7 {[%clk 0:04:28.3]} 9. Bd3 {[%clk 0:04:42.9]} 9... Re8 {[%clk
0:04:25.5]} 10. O-O {[%clk 0:04:42.5]} 10... Nf8 {[%clk 0:04:23.7]} 11. Bxf6
{[%clk 0:04:42]} 11... Bxf6 {[%clk 0:04:20.9]} 12. b4 {[%clk 0:04:41.6]} 12...
Be7 {[%clk 0:04:01]} 13. Rab1 {[%clk 0:04:39.9]} 13... Bd6 {[%clk 0:03:37.8]}
14. Bf5 {[%clk 0:04:37.7]} 14... Bxf5 {[%clk 0:03:27.7]} 15. Qxf5 {[%clk
0:04:36.1]} 15... g6 {[%clk 0:03:15.7]} 16. Qh3 {[%clk 0:04:31.1]} 16... Ne6
{[%clk 0:03:00.6]} 17. Rfc1 {[%clk 0:04:24.8]} 17... Ng5 {[%clk 0:02:51.8]} 18.
Nxg5 {[%clk 0:04:23.2]} 18... Qxg5 {[%clk 0:02:49.4]} 19. Qd7 {[%clk 0:04:18]}
19... Qe7 {[%clk 0:02:42.8]} 20. Qxe7 {[%clk 0:04:16.7]} 20... Rxe7 {[%clk
0:02:39.9]} 21. b5 {[%clk 0:04:16.2]} 21... Rb8 {[%clk 0:02:10.3]} 22. bxc6
{[%clk 0:04:13.6]} 22... bxc6 {[%clk 0:02:07.4]} 23. Rxb8+ {[%clk 0:04:12.5]}
23... Bxb8 {[%clk 0:02:05]} 24. Na4 {[%clk 0:04:12]} 24... Re6 {[%clk
0:01:22.5]} 25. Nc5 {[%clk 0:04:08.8]} 25... Re7 {[%clk 0:01:07]} 26. Na6 {[%clk
0:04:06.9]} 26... Rb7 {[%clk 0:01:04.1]} 27. g3 {[%clk 0:04:01]} 27... Rb6
{[%clk 0:00:46.5]} 28. Nxb8 {[%clk 0:03:59]} 28... Rxb8 {[%clk 0:00:44.8]} 29.
Rxc6 {[%clk 0:03:58]} 29... Rb5 {[%clk 0:00:25.9]} 30. Ra6 {[%clk 0:03:55.5]}
30... Rb7 {[%clk 0:00:22.3]} 31. g4 {[%clk 0:03:52]} 31... Kg7 {[%clk
0:00:17.7]} 32. g5 {[%clk 0:03:50.2]} 32... h6 {[%clk 0:00:16.1]} 33. h4 {[%clk
0:03:49.5]} 33... hxg5 {[%clk 0:00:14.5]} 34. hxg5 {[%clk 0:03:49.4]} 34... Kf8
{[%clk 0:00:13.8]} 35. Kg2 {[%clk 0:03:37.2]} 35... Ke7 {[%clk 0:00:12.9]} 36.
Kg3 {[%clk 0:03:36.7]} 36... Kd7 {[%clk 0:00:11.2]} 37. Kf4 {[%clk 0:03:36.2]}
37... Ke7 {[%clk 0:00:10.1]} 38. Ke5 {[%clk 0:03:35.3]} 38... Rd7 {[%clk
0:00:08.6]} 39. Ra5 {[%clk 0:03:30.5]} 39... Rb7 {[%clk 0:00:05.8]} 40. Rxd5
{[%clk 0:03:29]} 1-0

[Event "Live Chess"]
[Site "Chess.com"]
[Date "2023.05.20"]
[Round "-"]
[White "alanmike75"]
[Black "Tilbs_12"]
[Result "1/2-1/2"]
[WhiteElo "1535"]
[BlackElo "1561"]
[TimeControl "300"]
[EndTime "12:46:29 PDT"]
[Termination "Game drawn by repetition"]

1. e4 {[%clk 0:04:58.9]} 1... c6 {[%clk 0:04:59.1]} 2. Nf3 {[%clk 0:04:56.8]}
2... d5 {[%clk 0:04:58.5]} 3. exd5 {[%clk 0:04:55.7]} 3... cxd5 {[%clk
0:04:58.4]} 4. Ne5 {[%clk 0:04:54.4]} 4... Nc6 {[%clk 0:04:56.9]} 5. Bb5 {[%clk
0:04:53]} 5... Bd7 {[%clk 0:04:51.9]} 6. Nxd7 {[%clk 0:04:51]} 6... Qxd7 {[%clk
0:04:50.4]} 7. O-O {[%clk 0:04:48.5]} 7... Nf6 {[%clk 0:04:48.2]} 8. d4 {[%clk
0:04:46.8]} 8... e6 {[%clk 0:04:45.1]} 9. c3 {[%clk 0:04:45]} 9... a6 {[%clk
0:04:44.1]} 10. Bd3 {[%clk 0:04:43.4]} 10... Bd6 {[%clk 0:04:40.4]} 11. Re1
{[%clk 0:04:40]} 11... O-O {[%clk 0:04:38.1]} 12. Nd2 {[%clk 0:04:38.6]} 12...
e5 {[%clk 0:04:29.8]} 13. dxe5 {[%clk 0:04:35.5]} 13... Nxe5 {[%clk 0:04:28]}
14. Nf3 {[%clk 0:04:31.5]} 14... Nxd3 {[%clk 0:04:08.9]} 15. Qxd3 {[%clk
0:04:29.9]} 15... Rae8 {[%clk 0:04:05.4]} 16. Bg5 {[%clk 0:04:27.8]} 16... Ne4
{[%clk 0:03:59.8]} 17. Bh4 {[%clk 0:04:14.1]} 17... b5 {[%clk 0:03:46.5]} 18.
Rad1 {[%clk 0:04:09.6]} 18... Nf6 {[%clk 0:02:36.4]} 19. Bg3 {[%clk 0:04:06.7]}
19... Bxg3 {[%clk 0:02:34.7]} 20. hxg3 {[%clk 0:04:04.6]} 20... Rxe1+ {[%clk
0:02:33.7]} 21. Nxe1 {[%clk 0:03:49.9]} 21... Rd8 {[%clk 0:02:33.1]} 22. Nf3
{[%clk 0:03:48.5]} 22... g6 {[%clk 0:02:31.6]} 23. Qd4 {[%clk 0:03:45.7]} 23...
Ne4 {[%clk 0:02:27]} 24. Nd2 {[%clk 0:03:36.5]} 24... Nxd2 {[%clk 0:02:25.4]}
25. Rxd2 {[%clk 0:03:35]} 25... Qd6 {[%clk 0:02:19.3]} 26. Qe3 {[%clk
0:03:22.9]} 26... f6 {[%clk 0:02:12.5]} 27. Re2 {[%clk 0:03:18.5]} 27... g5
{[%clk 0:01:57.7]} 28. Qe6+ {[%clk 0:03:13.3]} 28... Kg7 {[%clk 0:01:56.7]} 29.
Qe7+ {[%clk 0:03:08.3]} 29... Kg6 {[%clk 0:01:50.8]} 30. g4 {[%clk 0:02:49.7]}
30... Qxe7 {[%clk 0:01:46.9]} 31. Rxe7 {[%clk 0:02:48.1]} 31... d4 {[%clk
0:01:46.5]} 32. cxd4 {[%clk 0:02:41.5]} 32... Rxd4 {[%clk 0:01:44.9]} 33. f3
{[%clk 0:02:40.3]} 33... Rd2 {[%clk 0:01:40.8]} 34. Ra7 {[%clk 0:02:36.2]} 34...
Rxb2 {[%clk 0:01:39.6]} 35. Rxa6 {[%clk 0:02:34.8]} 35... b4 {[%clk 0:01:31.5]}
36. Rb6 {[%clk 0:02:19.4]} 36... Rxa2 {[%clk 0:01:26.6]} 37. Rxb4 {[%clk
0:02:17.4]} 37... h5 {[%clk 0:01:26.1]} 38. gxh5+ {[%clk 0:02:15.6]} 38... Kxh5
{[%clk 0:01:24.4]} 39. Kh2 {[%clk 0:02:13.9]} 39... f5 {[%clk 0:01:19.4]} 40.
Rb8 {[%clk 0:02:09.5]} 40... g4 {[%clk 0:01:15]} 41. Kg3 {[%clk 0:02:03.8]}
41... gxf3 {[%clk 0:01:12.9]} 42. gxf3 {[%clk 0:02:02.8]} 42... Kg5 {[%clk
0:01:00.5]} 43. Rg8+ {[%clk 0:01:59.9]} 43... Kf6 {[%clk 0:00:59.3]} 44. Rf8+
{[%clk 0:01:58.6]} 44... Kg6 {[%clk 0:00:58]} 45. Kf4 {[%clk 0:01:51.2]} 45...
Ra3 {[%clk 0:00:53.3]} 46. Kg3 {[%clk 0:01:49.8]} 46... Kg5 {[%clk 0:00:50.4]}
47. Rg8+ {[%clk 0:01:47.4]} 47... Kf6 {[%clk 0:00:49.1]} 48. Rf8+ {[%clk
0:01:46.2]} 48... Kg6 {[%clk 0:00:48.3]} 49. Rg8+ {[%clk 0:01:44.4]} 49... Kf6
{[%clk 0:00:47.4]} 50. Rf8+ {[%clk 0:01:43.3]} 50... Kg6 {[%clk 0:00:46.8]} 51.
Rg8+ {[%clk 0:01:42.2]} 51... Kf6 {[%clk 0:00:46.2]} 1/2-1/2